fUSD/lending_fUSD_20240407
["ID","MTS","AMOUNT","RATE_DAILY","PERIOD"]
[321798575,1712524232011,-160.63047079,0.00018799,2]
[321798577,1712524232021,-137.74952921,0.000189,2]
[321798579,1712524232032,-3810.43341699,0.000189,2]
[321798580,1712524232041,-155.0,0.000189,2]
[321798581,1712524232050,-1136.00445021,0.000189,2]
[321798582,1712524232059,-863.11991372,0.000189,2]
[321798583,1712524232069,-3085.69389018,0.000189,2]
[321798584,1712524232081,-401.82437314,0.000189,2]
[321798585,1712524232097,-146.55483668,0.000189,2]
[321798586,1712524232107,-934.51,0.0001957,2]
[321798587,1712524232116,-779.27,0.00019596,2]
[321798588,1712524232126,-1339.81,0.00019662,2]
[321798589,1712524232135,-289.28,0.00019734,2]
[321798590,1712524232145,-500.0,0.00019735,2]
[321798591,1712524232153,-158.26,0.00019743,2]
[321798592,1712524232163,-710.72,0.00019761,2]
[321798593,1712524232173,-6630.54,0.00019952,2]
[321798594,1712524232182,-1254.15228214,0.0002,2]
[321798595,1712524232192,-363.98,0.00020037,2]
[321798596,1712524232201,-150.99,0.00020151,2]
[321798597,1712524232211,-158.26,0.00020258,2]
[321798598,1712524232221,-150.0,0.000205,2]
[321798599,1712524232230,-540.0,0.00020548,2]
[321798600,1712524232240,-598.0,0.00020548,2]
[321798601,1712524232250,-499.99,0.00020548,2]
[321798602,1712524232259,-593.84,0.00020548,2]
[321798603,1712524232269,-169.55,0.00020685,2]
[321798604,1712524232278,-158.26,0.00020772,2]
[321798605,1712524232287,-2959.75391496,0.00020887,2]
[321798606,1712524232297,-255.4418,0.0002089,2]
[321798607,1712524232306,-2500.0,0.0002089,2]
[321798608,1712524232316,-436.97283912,0.00020896,2]
[321798609,1712524232325,-436.97283905,0.00020897,2]
[321798610,1712524232336,-757.47229907,0.00020897,2]
[321798611,1712524232345,-436.97283905,0.00020897,2]
[321798612,1712524232355,-757.47229907,0.00020897,2]
[321798613,1712524232364,-436.97283905,0.00020898,2]
[321798614,1712524232374,-757.47229907,0.00020898,2]
[321798615,1712524232384,-1000.0,0.00020898,2]
[321798616,1712524232394,-3947.8363,0.00020898,2]
[321798617,1712524232405,-757.47229907,0.00020898,2]
[321798618,1712524232414,-436.97283905,0.00020898,2]
[321798619,1712524232423,-757.47229907,0.00020899,2]
[321798620,1712524232432,-436.97283905,0.00020899,2]
[321798621,1712524232441,-153.55273054,0.00020899,2]
[321798622,1712524232452,-757.47229907,0.00020899,2]
[321798623,1712524232461,-436.97283905,0.00020899,2]
[321798624,1712524232471,-757.47229907,0.000209,2]
[321798625,1712524232480,-757.47229907,0.000209,2]
[321798627,1712524232490,-38748.56319774,0.000209,2]
[321798629,1712524232499,-436.97283905,0.000209,2]
[321798631,1712524232508,-436.8577938,0.000209,2]
[321798633,1712524232518,-157.040806,0.00020908,2]
[321798635,1712524232529,-157.040806,0.00020908,2]
[321798637,1712524232540,-157.040806,0.00020908,2]
[321798639,1712524232550,-157.040806,0.00020908,2]
[321798640,1712524232562,-157.040806,0.00020908,2]
[321798641,1712524232571,-157.040806,0.00020908,2]
[321798642,1712524232582,-157.040806,0.00020908,2]
[321798643,1712524232591,-157.040806,0.00020908,2]
[321798644,1712524232601,-157.040806,0.00020908,2]
[321798645,1712524232611,-157.040806,0.00020908,2]
[321798646,1712524232621,-157.040806,0.00020908,2]
[321798647,1712524232631,-157.040806,0.00020908,2]
[321798648,1712524232642,-157.040806,0.00020908,2]
[321798649,1712524232653,-157.040806,0.00020908,2]
[321798650,1712524232662,-157.040806,0.00020908,2]
[321798651,1712524232673,-101741.5390229,0.0002099,2]
[321798652,1712524232686,-6130.43300183,0.0002099,2]
[321798653,1712524232698,-72298.26245091,0.0002099,2]
[321798654,1712524232729,-781.95019923,0.0002099,2]
[321798655,1712524232742,-1806.00192747,0.0002099,2]
[321798656,1712524232754,-762.1913702,0.0002099,2]
[321798657,1712524232765,-1403.19754049,0.0002099,2]
[321798658,1712524232787,-36305.01167786,0.0002099,2]
[321798659,1712524232799,-155.0,0.00020996,2]
[321798660,1712524232809,-1967.9938478,0.00020996,2]
[321798661,1712524233034,-522.426809,0.00020996,2]
[321798662,1712524233052,-1044.54849104,0.00020996,2]
[321798663,1712524233062,-155.0,0.00020996,2]
[321798664,1712524233074,-439.62504973,0.00020996,2]
[321798665,1712524233084,-188.80520606,0.00020996,2]
[321798666,1712524233094,-23283.26082031,0.00020997,2]
[321798667,1712524233104,-29850.56533141,0.00020997,2]
[321798668,1712524233114,-266.62366915,0.00020997,2]
[321798669,1712524233123,-343366.06799253,0.00020998,2]
[321798670,1712524233136,-896.99068152,0.00020998,2]
[321798671,1712524233148,-259.86200001,0.00020998,2]
[321798672,1712524233161,-357.4799971,0.00020998,2]
[321798673,1712524233180,-6431.15118068,0.00020998,2]
[321798674,1712524233194,-6769.72691508,0.00020998,2]
[321798675,1712524233265,-667.36237526,0.00020998,2]
[321798676,1712524233279,-565.25689159,0.00020998,2]
[321798677,1712524233292,-346.48303694,0.00020998,2]
[321798678,1712524233384,-418.90217464,0.00020998,2]
[321798716,1712524238203,-152.52176771,0.00020898,2]
[321798718,1712524238212,-1025.01723229,0.00020998,2]
[321798727,1712524238287,-2092.72786487,0.00020998,2]
[321798732,1712524238320,-341829.88398379,0.00020998,2]
[321798734,1712524238329,-532.69644791,0.00020998,2]
[321798736,1712524238340,-1186181.76239676,0.00020998,2]
[321798738,1712524238350,-646761.90184925,0.00020998,2]
[321798740,1712524238358,-13679122.69228779,0.00021,2]
[321798742,1712524238369,-18318417.0586323,0.00021,2]
[321798745,1712524238381,-480648.39856715,0.00021,2]
[321798770,1712524238543,-8740.01237637,0.00021,2]
[321798778,1712524238612,-2070.03966592,0.00021,2]
[321798783,1712524240102,-31769.7400496,0.00021,2]
[321798784,1712524240431,-1622.88008112,0.00021,2]
[321798785,1712524240443,-2115.17977482,0.00021,2]
[321798786,1712524240454,-252.09700019,0.00021,2]
[321798787,1712524240465,-716.25,0.00021,2]
[321798788,1712524243246,-882.7661639,0.00020898,2]
[321798789,1712524247294,-1099.45671623,0.00020896,2]
[321798790,1712524247303,-3810.50449625,0.00020898,2]
[321798791,1712524247315,-2806.72933985,0.00020898,2]
[321798792,1712524247324,-1178.05293695,0.00021,2]
[321798793,1712524247335,-672.41145114,0.00021,2]
[321798794,1712524247348,-788.743004,0.00021,2]
[321798795,1712524308964,354.09,0.00018152,2]
[321798798,1712524346302,5476.31175086,0.00018152,2]
[321798799,1712524435195,219.00197946,0.00018049,2]
[321798802,1712524895684,389.81,0.00016811,2]
[321798805,1712525097785,250.95098069,0.000181,2]
[321798806,1712525101903,1057.96708886,0.000181,2]
[321798807,1712525104245,155.0,0.000181,2]
[321798808,1712525108502,446.98536618,0.000181,2]
[321798809,1712525109792,662.07520958,0.000181,2]
[321798810,1712525110247,620.31159771,0.000181,2]
[321798811,1712525116710,10544.41495387,0.000181,2]
[321798812,1712525149113,-1027.76665178,0.00018105,2]
[321798814,1712525242097,-1285.05609501,0.00018139,2]
[321798815,1712525349157,-2559.476,0.00018138,2]
[321798816,1712525352096,-5612.92921843,0.00018138,2]
[321798817,1712525352117,-683.74101008,0.00018139,2]
[321798818,1712525352141,-9462.66208032,0.0001814,2]
[321798819,1712525354167,-3634.0104,0.0001814,2]
[321798820,1712525355094,-1493.89673491,0.0001814,2]
[321798821,1712525355115,-300.0,0.00018149,2]
[321798822,1712525355140,-150.0,0.00018149,2]
[321798823,1712525355161,-49516.15287756,0.0001815,2]
[321798824,1712525355182,-3226.91978753,0.00018152,2]
[321798825,1712525358140,-3707.24961247,0.00018152,2]
[321798826,1712525358162,-1057.96708886,0.00018795,2]
[321798827,1712525358185,-300.0,0.00018796,2]
[321798828,1712525358209,-1819.84,0.00018809,2]
[321798829,1712525358231,-200.0,0.0001884,2]
[321798830,1712525358254,-568.58,0.00018842,2]
[321798831,1712525358275,-3003.13663893,0.00018851,2]
[321798832,1712525365157,-446.98536618,0.00018139,2]
[321798833,1712525365178,-20896.86336107,0.00018851,2]
[321798834,1712525365197,-150.99,0.00018851,2]
[321798835,1712525365219,-150.0,0.0001888,2]
[321798836,1712525365239,-748.22929307,0.00018898,2]
[321798837,1712525365259,-239.77300228,0.000189,2]
[321798838,1712525365281,-940.88907787,0.000189,2]
[321798839,1712525365302,-16574.20689953,0.000189,2]
[321798840,1712525371037,370.31,0.00017466,2]
[321798841,1712525388369,-187.15183732,0.000189,2]
[321798842,1712525388391,-499.99,0.000189,2]
[321798843,1712525388416,-10965.49,0.00018903,2]
[321798844,1712525388440,-389.63,0.00018903,2]
[321798845,1712525388463,-1131.16,0.00018915,2]
[321798846,1712525388486,-200.0,0.0001892,2]
[321798847,1712525388512,-971.81,0.00018927,2]
[321798848,1712525388535,-373.51,0.00018994,2]
[321798849,1712525388557,-1750.0,0.00019,3]
[321798854,1712525433043,-233.30648504,0.00019012,2]
[321798855,1712525433053,-506.33,0.00019013,2]
[321798856,1712525433063,-160.3,0.00019031,2]
[321798857,1712525433072,-431.42,0.0001919,2]
[321798858,1712525433082,-160.3,0.00019362,2]
[321798859,1712525433091,-166.09,0.00019395,2]
[321798860,1712525433100,-160.3,0.00019692,2]
[321798861,1712525433109,-370.31,0.0001973,2]
[321798862,1712525433119,-451.1818864,0.00019738,2]
[321798863,1712525433128,-1045.12690179,0.0002,2]
[321798864,1712525433137,-297.430608,0.0002,2]
[321798865,1712525433146,-160.3,0.00020023,2]
[321798866,1712525433159,-455.43,0.00020341,2]
[321798867,1712525433168,-1829.51,0.00020341,2]
[321798868,1712525433177,-150.0,0.000205,2]
[321798869,1712525433187,-167.02,0.00020592,2]
[321798870,1712525433197,-171.11510934,0.00020675,2]
[321798871,1712525433205,-150.0,0.00020685,2]
[321798872,1712525433214,-2500.0,0.00020686,2]
[321798873,1712525433224,-171.11510925,0.000207,2]
[321798874,1712525433235,-171.11510925,0.00020725,2]
[321798875,1712525433244,-171.11510925,0.0002075,2]
[321798876,1712525433253,-150.0,0.00020758,2]
[321798877,1712525433263,-11728.0020545,0.00020774,2]
[321798878,1712525433316,-16923.68390715,0.00020774,2]
[321798879,1712525433379,-15560.69344056,0.00020774,2]
[321798880,1712525433389,-250.71616797,0.00020774,2]
[321798881,1712525433398,-171.11510925,0.00020775,2]
[321798882,1712525433408,-2551.13890445,0.00020786,2]
[321798883,1712525433419,-6453.4356,0.00020786,2]
[321798884,1712525433429,-1156.786,0.00020786,2]
[321798885,1712525433440,-2551.13890439,0.00020799,2]
[321798886,1712525433451,-171.11510925,0.000208,2]
[321798887,1712525433461,-2551.13890439,0.00020811,2]
[321798888,1712525433471,-297.430608,0.00020822,2]
[321798889,1712525433482,-2551.13890439,0.00020824,2]
[321798890,1712525433491,-171.11510925,0.00020825,2]
[321798891,1712525433503,-2551.13890439,0.00020837,2]
[321798892,1712525433516,-2551.13890439,0.00020849,2]
[321798893,1712525433526,-171.11510925,0.0002085,2]
[321798894,1712525433537,-2551.13890439,0.00020862,2]
[321798895,1712525433547,-2551.13890439,0.00020875,2]
[321798896,1712525433559,-171.11510925,0.00020875,2]
[321798897,1712525433569,-288.3261537,0.00020885,2]
[321798898,1712525433580,-1000.0,0.00020886,2]
[321798899,1712525433591,-1853.0417,0.00020886,2]
[321798900,1712525433601,-27305.5024,0.00020886,2]
[321798901,1712525433612,-127342.4473976,0.00020886,2]
[321798929,1712525438321,-10395.0,0.00020886,2]
[321798932,1712525438342,-107262.5526024,0.00020886,2]
[321798934,1712525438351,-2923.1824,0.00020886,2]
[321798936,1712525438361,-500.0,0.00020886,2]
[321798938,1712525438370,-2551.13890439,0.00020887,2]
[321798940,1712525438379,-814.5478,0.0002089,2]
[321798942,1712525438388,-196.62213905,0.00020893,2]
[321798944,1712525438397,-200.24445718,0.00020899,2]
[321798946,1712525438406,-169.69442563,0.00020899,2]
[321798948,1712525438415,-550.9404607,0.00020899,2]
[321798950,1712525438424,-154.37103609,0.00020899,2]
[321798952,1712525438433,-168.37239557,0.00020899,2]
[321798954,1712525438442,-168.37239553,0.00020899,2]
[321798956,1712525438451,-550.94046066,0.00020899,2]
[321798958,1712525438460,-168.37239553,0.00020899,2]
[321798960,1712525438469,-550.94046066,0.000209,2]
[321798962,1712525438479,-168.37239553,0.000209,2]
[321798964,1712525438488,-550.94046066,0.000209,2]
[321798966,1712525438497,-168.37239553,0.000209,2]
[321798968,1712525438506,-200.24445717,0.000209,2]
[321798970,1712525438515,-1237.3033,0.000209,2]
[321798972,1712525438525,-191.293,0.000209,2]
[321798974,1712525438534,-9972.6136,0.000209,2]
[321798976,1712525438543,-944.9041,0.000209,2]
[321798978,1712525438552,-550.94046066,0.000209,2]
[321798980,1712525438561,-171.11510925,0.000209,2]
[321798982,1712525438571,-168.37239553,0.000209,2]
[321798984,1712525438580,-2551.13890439,0.000209,2]
[321798986,1712525438590,-157.040806,0.00020908,2]
[321798988,1712525438599,-157.040806,0.00020908,2]
[321798990,1712525438609,-157.040806,0.00020908,2]
[321798992,1712525438618,-157.040806,0.00020908,2]
[321798994,1712525438627,-157.040806,0.00020908,2]
[321798996,1712525438637,-157.040806,0.00020908,2]
[321798997,1712525438646,-157.040806,0.00020908,2]
[321798998,1712525438655,-157.040806,0.00020908,2]
[321798999,1712525438664,-157.040806,0.00020908,2]
[321799001,1712525438674,-157.040806,0.00020908,2]
[321799003,1712525438682,-157.040806,0.00020908,2]
[321799005,1712525438691,-157.040806,0.00020908,2]
[321799007,1712525438701,-157.040806,0.00020908,2]
[321799010,1712525438710,-157.040806,0.00020908,2]
[321799013,1712525438719,-157.040806,0.00020908,2]
[321799016,1712525438728,-183.16911618,0.00020976,2]
[321799018,1712525438737,-4120.56493453,0.00020979,2]
[321799019,1712525438747,-203.73515765,0.00020984,2]
[321799021,1712525438757,-619.28316826,0.00020984,2]
[321799022,1712525438767,-219.99618232,0.00020984,2]
[321799023,1712525438776,-2123.39753092,0.00020984,2]
[321799024,1712525438785,-1056.80710737,0.00020984,2]
[321799025,1712525438794,-445.59848386,0.00020984,2]
[321799026,1712525438803,-160541.0,0.00020986,2]
[321799027,1712525438812,-7709.0,0.00020986,2]
[321799028,1712525438822,-159970.0,0.00020986,2]
[321799029,1712525438831,-22080.0,0.00020986,2]
[321799030,1712525438840,-304.21971482,0.00020988,2]
[321799031,1712525438849,-679.22908825,0.00020997,2]
[321799032,1712525438860,-156.15854862,0.00020997,2]
[321799033,1712525438869,-366.76350435,0.00020997,2]
[321799034,1712525438879,-21715.69274698,0.00020997,2]
[321799035,1712525438888,-155.59350521,0.00020997,2]
[321799036,1712525438897,-193.64089947,0.00020997,2]
[321799037,1712525438907,-3369.98331049,0.00020997,2]
[321799038,1712525438917,-203.49910926,0.00020997,2]
[321799039,1712525438927,-276.00153917,0.00020997,2]
[321799040,1712525438936,-706.56929154,0.00020997,2]
[321799041,1712525438945,-164.63237998,0.00020997,2]
[321799042,1712525438955,-155.0,0.00020997,2]
[321799043,1712525438964,-155.0,0.00020997,2]
[321799044,1712525438973,-156.86509409,0.00020997,2]
[321799045,1712525438982,-197.13551625,0.00020997,2]
[321799046,1712525438992,-155.0,0.00020997,2]
[321799047,1712525439002,-196.41457958,0.00020997,2]
[321799048,1712525439011,-502.14451424,0.00020997,2]
[321799049,1712525439021,-3854.39454608,0.00020997,2]
[321799050,1712525439031,-175.000275,0.00020997,2]
[321799051,1712525439040,-475.48376718,0.00020997,2]
[321799052,1712525439049,-403.1819564,0.00020997,2]
[321799053,1712525439059,-312.54704425,0.00020998,2]
[321799054,1712525439069,-1210.58734192,0.00020998,2]
[321799055,1712525439078,-155.0,0.00020998,2]
[321799056,1712525439088,-4106.91166236,0.00020998,2]
[321799057,1712525439098,-485.82894591,0.00020998,2]
[321799058,1712525439107,-155.0,0.00020998,2]
[321799059,1712525439117,-155.0,0.00020998,2]
[321799060,1712525439126,-2352.77994122,0.00020998,2]
[321799061,1712525439149,-375.77516328,0.00020998,2]
[321799062,1712525439162,-406.88460765,0.00020998,2]
[321799063,1712525439171,-155.0,0.00020998,2]
[321799064,1712525439180,-801.21665498,0.00020998,2]
[321799065,1712525439190,-209.72898488,0.00020998,2]
[321799066,1712525439199,-155.36437613,0.00020998,2]
[321799067,1712525439210,-5368.83203164,0.00020998,2]
[321799068,1712525439219,-256.26713779,0.00020998,2]
[321799069,1712525439229,-678.37754944,0.00020998,2]
[321799070,1712525439240,-344.64705912,0.00020998,2]
[321799071,1712525439250,-199.54133712,0.00020998,2]
[321799072,1712525439259,-295.47470357,0.00020998,2]
[321799073,1712525439269,-155.45869637,0.00020998,2]
[321799074,1712525439278,-4710.43501959,0.00020998,2]
[321799075,1712525439287,-1760.14678105,0.00020998,2]
[321799076,1712525439297,-546.81757264,0.00020998,2]
[321799077,1712525439306,-155.98437157,0.00020998,2]
[321799078,1712525439316,-549.90625593,0.00020998,2]
[321799079,1712525439326,-1242.22213758,0.00020998,2]
[321799080,1712525439335,-500.0,0.00020998,2]
[321799081,1712525439345,-155.0,0.00020998,2]
[321799082,1712525439354,-310452.86617286,0.00020999,2]
[321799083,1712525439364,-583.66178625,0.00020999,2]
[321799084,1712525439373,-1672645.88138713,0.00020999,2]
[321799085,1712525439383,-18915.05826116,0.00020999,2]
[321799086,1712525439392,-11765178.72058355,0.00021,2]
[321799087,1712525439405,-9027874.34583991,0.00021,2]
[321799088,1712525439414,-57079.86146216,0.00021,2]
[321799089,1712525439424,-2055.16,0.00021,2]
[321799090,1712525439433,-1717.61,0.00021,2]
[321799091,1712525439441,-9229690.08133023,0.00021,2]
[321799092,1712525439453,-480648.39856715,0.00021,2]
[321799093,1712525439568,-960340.80886452,0.00021,2]
[321799094,1712525439729,-11911.47752369,0.00021,2]
[321799097,1712525442422,-295.16763988,0.000209,2]
[321799098,1712525442431,-266779.20412362,0.00021,2]
[321799099,1712525442693,-681.24585195,0.00021,2]
[321799100,1712525442704,-938.75095268,0.00021,2]
[321799101,1712525442717,-537.735,0.00021,2]
[321799108,1712525445569,-6445.70509217,0.00021,2]
[321799109,1712525445733,-16424.10474922,0.00021,2]
[321799125,1712525446319,-0.07596976,0.000209,2]
[321799130,1712525447668,-493.59053066,0.000209,2]
[321799131,1712525447756,-373.5068174,0.000209,2]
[321799132,1712525447797,-132.82668218,0.000209,2]
[321799133,1712525447811,-156.66571823,0.00020999,2]
[321799134,1712525447825,-451.84702543,0.00020999,2]
[321799135,1712525453718,460.84943411,0.00016798,2]
[321799136,1712525476910,4016.21894175,0.0002,5]
[321799137,1712525502726,3346.84911812,0.0002,5]
[321799138,1712525519176,2636.93194013,0.0002,5]
[321799139,1712525554172,748.22929307,0.00017939,2]
[321799144,1712525820104,150.0,0.00017921,2]
[321799145,1712525835583,23900.0,0.00017928,2]
[321799146,1712525836579,449.35,0.0001601,2]
[321799147,1712525841654,200.0,0.00017915,2]
[321799148,1712525847241,239.32832496,0.00017939,2]
[321799149,1712525847268,150.0,0.00017939,2]
[321799150,1712525847291,150.0,0.00017939,2]
[321799151,1712525847312,150.0,0.00017939,2]
[321799152,1712525847334,150.0,0.00017939,2]
[321799153,1712525847356,150.0,0.00017939,2]
[321799154,1712525847377,150.0,0.00017939,2]
[321799155,1712525847400,150.0,0.00017939,2]
[321799156,1712525847423,150.0,0.00017939,2]
[321799157,1712525847443,150.0,0.00017939,2]
[321799158,1712525847463,150.0,0.00017939,2]
[321799159,1712525847485,150.0,0.00017939,2]
[321799160,1712525847505,110.67167504,0.00017939,2]
[321799161,1712525850784,2130.70558282,0.00017939,2]
[321799162,1712525852475,2386.95,0.00017915,2]
[321799163,1712525861304,150.0,0.00017939,2]
[321799164,1712525861325,150.0,0.00017939,2]
[321799165,1712525861347,150.0,0.00017939,2]
[321799166,1712525861368,150.0,0.00017939,2]
[321799167,1712525861389,150.0,0.00017939,2]
[321799168,1712525861410,150.0,0.00017939,2]
[321799169,1712525861431,150.0,0.00017939,2]
[321799170,1712525861452,150.0,0.00017939,2]
[321799171,1712525861473,150.0,0.00017939,2]
[321799172,1712525861494,150.0,0.00017939,2]
[321799173,1712525861514,244.65135902,0.00017939,2]
[321799174,1712525861533,150.0,0.00017939,2]
[321799175,1712525861557,1971.19710899,0.00017939,2]
[321799176,1712525861582,1589.96266182,0.00017939,2]
[321799179,1712526012447,8135.16149,0.00017993,2]
[321799181,1712526017732,150.0,0.00017915,2]
[321799182,1712526017752,16.09,0.00017915,2]
[321799184,1712526041842,150.0,0.00017911,2]
[321799185,1712526041863,150.0,0.00017911,2]
[321799186,1712526041885,150.0,0.00017911,2]
[321799187,1712526041906,150.0,0.00017911,2]
[321799188,1712526041926,150.0,0.00017911,2]
[321799189,1712526041947,150.0,0.00017911,2]
[321799190,1712526041967,100.0,0.00017911,2]
[321799191,1712526072525,150.0,0.00017906,2]
[321799192,1712526072546,150.0,0.00017906,2]
[321799193,1712526072568,150.0,0.00017906,2]
[321799194,1712526072593,251.12,0.00017906,2]
[321799195,1712526147236,500.0,0.00017906,2]
[321799196,1712526179931,440.69,0.00017906,2]
[321799197,1712526204158,454.87,0.00017906,2]
[321799198,1712526205789,558.61202952,0.00017096,5]
[321799201,1712526307563,150.0,0.00018,2]
[321799202,1712526316180,150.0,0.00017906,2]
[321799203,1712526316203,150.0,0.00017906,2]
[321799204,1712526316226,150.0,0.00017906,2]
[321799205,1712526316247,150.0,0.00017906,2]
[321799206,1712526316267,183.91,0.00017906,2]
[321799207,1712526316294,807.05,0.00017906,2]
[321799208,1712526326691,150.0,0.00012822,2]
[321799209,1712526326711,150.0,0.00012822,2]
[321799210,1712526326731,150.0,0.00012822,2]
[321799211,1712526351011,150.0,0.00017878,2]
[321799212,1712526351032,150.0,0.00017878,2]
[321799213,1712526351054,4879.93,0.00017878,2]
[321799214,1712526417387,484.13,0.00015981,2]
[321799215,1712526425173,-219.99691984,0.00018025,2]
[321799216,1712526429708,-443.08539697,0.00018024,2]
[321799217,1712526429727,-49.15760391,0.00018025,2]
[321799218,1712526429746,-500.0,0.00018026,2]
[321799219,1712526429766,-155.0,0.00018027,2]
[321799220,1712526429786,-5114.76545032,0.00018034,2]
[321799221,1712526439037,937.6664,0.00017937,2]
[321799224,1712526498690,259.93309587,0.00017937,2]
[321799225,1712526503256,155.0,0.00017937,2]
[321799226,1712526504253,360.4075085,0.00017937,2]
[321799227,1712526513788,-210.0,0.00021918,7]
[321799228,1712526557201,-269.15452375,0.00018032,2]
[321799229,1712526557220,-150.0,0.00018033,2]
[321799230,1712526557240,-150.0,0.00018033,2]
[321799231,1712526557259,-549.5391752,0.00018033,2]
[321799232,1712526557278,-549.5391752,0.00018033,2]
[321799233,1712526557297,-549.5391752,0.00018033,2]
[321799234,1712526557316,-549.5391752,0.00018033,2]
[321799235,1712526557335,-4123.49697558,0.00018034,2]
[321799236,1712526568161,-12605.206537,0.00018034,2]
[321799237,1712526568189,-910.18066223,0.00018034,2]
[321799238,1712526568209,-168.47,0.0001804,2]
[321799239,1712526568228,-335.72,0.00018042,2]
[321799240,1712526568250,-484.13,0.00018244,2]
[321799241,1712526572143,-1874.03869476,0.0001827,2]
[321799242,1712526572163,-162.93801693,0.00018692,2]
[321799243,1712526572182,-150.99,0.00018692,2]
[321799244,1712526572202,-162.93801691,0.00018761,2]
[321799245,1712526572221,-162.93801691,0.0001883,2]
[321799246,1712526572441,-499.99,0.0001883,2]
[321799247,1712526572461,-2281.92,0.00018858,2]
[321799248,1712526572480,-1638.29405449,0.00018862,2]
[321799249,1712526592562,350.56,0.00018056,2]
[321799250,1712526610177,436.95,0.00018056,2]
[321799260,1712526632067,-237.944487,0.00018356,2]
[321799261,1712526632077,-62.045513,0.00018805,2]
[321799262,1712526632143,-0.00333256,0.00018805,2]
[321799263,1712526632154,-5438.39379598,0.00018805,2]
[321799264,1712526632171,-13886.44436386,0.00018805,2]
[321799265,1712526632180,-5007.35955235,0.00018806,2]
[321799266,1712526632189,-3026.00338451,0.00018862,2]
[321799267,1712526632198,-2566.31377742,0.00018862,2]
[321799268,1712526632207,-179.236496,0.00018862,2]
[321799269,1712526632216,-643.62594551,0.00018862,2]
[321799270,1712526632226,-2281.92,0.00018867,2]
[321799271,1712526632235,-2281.92,0.00018872,2]
[321799272,1712526632244,-2281.92,0.00018877,2]
[321799273,1712526632254,-2281.92,0.00018882,2]
[321799274,1712526632263,-2281.92,0.00018887,2]
[321799275,1712526632273,-2281.92,0.00018892,2]
[321799276,1712526632283,-2281.92,0.00018897,2]
[321799277,1712526632293,-162.93801691,0.00018899,2]
[321799278,1712526632302,-795.97854439,0.00018899,2]
[321799279,1712526632311,-2000.75733528,0.00018899,2]
[321799280,1712526632321,-2281.92,0.00018902,2]
[321799281,1712526632330,-2281.92,0.00018907,2]
[321799282,1712526632341,-6582.411,0.00018907,2]
[321799283,1712526632350,-2281.92,0.00018912,2]
[321799284,1712526632359,-2281.92,0.00018917,2]
[321799285,1712526632368,-2281.92,0.00018922,2]
[321799286,1712526632630,-2281.92,0.00018927,2]
[321799287,1712526632639,-2281.92,0.00018932,2]
[321799288,1712526632649,-2281.92,0.00018937,2]
[321799289,1712526632658,-2281.92,0.00018942,2]
[321799290,1712526632667,-2281.92,0.00018947,2]
[321799291,1712526632676,-2281.92,0.00018952,2]
[321799292,1712526632685,-181.38447823,0.00018988,2]
[321799293,1712526632694,-155.0,0.00018996,2]
[321799294,1712526632703,-500.0,0.00018996,2]
[321799295,1712526632712,-1237.30374215,0.00018996,2]
[321799296,1712526632721,-155.38576501,0.00018996,2]
[321799297,1712526632730,-496.28362288,0.00018996,2]
[321799298,1712526632739,-1845.13188391,0.00018997,2]
[321799299,1712526632749,-227886.16575423,0.00018998,2]
[321799300,1712526632796,-439182.50644575,0.00018998,2]
[321799301,1712526632805,-1750.0,0.00019,3]
[321799302,1712526632814,-545.13,0.0001914,2]
[321799303,1712526632824,-352.27716882,0.00019178,2]
[321799304,1712526632833,-237.944487,0.00019178,2]
[321799305,1712526632842,-795.97854437,0.00019558,2]
[321799306,1712526632851,-2000.75733526,0.00019558,2]
[321799307,1712526632861,-191.63087499,0.00019725,2]